bitfinex-derivatives/quotes_ETHF0:USTF0_20250403
["timestamp","ask_amount","ask_price","bid_price","bid_amount"]
[1743703818169,2.58347428,1776.1,1776.0,0.71165978]
[1743703818572,1.12644,1776.0,1775.9,1.13490428]
[1743703818773,2.56404,1776.0,1775.9,1.13490428]
[1743703818973,2.56404,1776.0,1775.9,1.84701707]
[1743703819372,2.56404,1776.0,1775.9,1.84706707]
[1743703819573,2.56404,1776.0,1775.9,0.72056707]
[1743703819865,2.56404,1776.0,1775.9,0.68674995]
[1743703819866,9.65664,1776.0,1775.9,0.68674995]
[1743703820074,1.12669,1775.6,1775.5,4.33452]
[1743703820266,1.12669,1775.6,1775.5,4.94325963]
[1743703820468,1.12669,1775.6,1775.5,45.13452]
[1743703820672,1.12669,1775.6,1775.5,44.0078]
[1743703820875,2.59329,1775.6,1775.5,44.0078]
[1743703821171,1.12667,1775.7,1775.5,44.0078]
[1743703821376,6.02414,1775.9,1775.5,44.0078]
[1743703821377,1.12661,1775.8,1775.7,1.12656]
[1743703822177,1.12661,1775.8,1775.7,2.64526]
[1743703823075,1.12663,1775.7,1775.6,0.755]
[1743703823371,1.12669,1775.6,1775.5,47.37201]
[1743703823592,1.12669,1775.6,1775.5,47.98096375]
[1743703823778,1.12669,1775.6,1775.5,44.16425]
[1743703823966,2.53839,1775.6,1775.5,44.16425]
[1743703824173,2.53839,1775.6,1775.5,40.8]
[1743703824469,3.23569,1775.6,1775.5,40.8]
[1743703824971,1.12675,1775.5,1775.4,1.89023428]
[1743703825178,1.12675,1775.5,1775.4,0.76345428]
[1743703825179,2.51205,1775.5,1775.4,0.76345428]
[1743703826177,2.51205,1775.5,1775.4,0.00845428]
[1743703829180,5.01205,1775.5,1775.4,0.00845428]
[1743703832369,8.21985,1775.5,1775.4,4.28e-06]
[1743703832770,1.1272,1774.8,1774.7,3.2078]
[1743703833480,1.12733,1774.6,1774.5,1.5134]
[1743703833676,1.12745,1774.4,1774.3,1.4108]
[1743703833870,1.12745,1774.4,1774.3,4.6186]
[1743703834076,1.12745,1774.4,1774.3,2.8794]
[1743703834475,1.12744,1774.5,1774.4,1.12745]
[1743703834774,1.12744,1774.5,1774.4,1.4686]
[1743703837275,1.12744,1774.5,1774.4,4.6764]
[1743703837487,1.12744,1774.5,1774.4,5.80385]
[1743703837785,1.12744,1774.5,1774.4,4.6764]
[1743703838080,0.00845428,1774.7,1774.4,4.6764]
[1743703838276,0.00845428,1774.7,1774.6,3.2078]
[1743703838473,0.00845428,1774.7,1774.6,4.33513]
[1743703838680,1.12708,1775.0,1774.9,1.12713]
[1743703839281,1.12713,1774.9,1774.8,5.86975]
[1743703839478,1.12712,1775.0,1774.9,1.12712]
[1743703839681,1.12712,1775.0,1774.9,2.66192]
[1743703840382,1.12712,1775.0,1774.9,1.5348]
[1743703840577,1.12713,1774.9,1774.8,3.2078]
[1743703840777,1.12713,1774.9,1774.8,1.5251]
[1743703843285,1.12713,1774.9,1774.8,2.6523]
[1743703843585,1.12713,1774.9,1774.8,1.5251]
[1743703845379,1.3891,1775.0,1774.7,0.7554]
[1743703845380,1.1272,1774.8,1774.7,0.7554]
[1743703845579,1.1272,1774.8,1774.7,2.1509]
[1743703846076,2.5714,1774.8,1774.7,0.7554]
[1743703847788,1.12726,1774.7,1774.6,3.9106]
[1743703847989,2.57146,1774.7,1774.6,5.80163]
[1743703848286,2.57146,1774.7,1774.6,4.6743]
[1743703848587,2.57146,1774.7,1774.6,3.9715]
[1743703848788,2.57146,1774.7,1774.5,2.65176]
[1743703848789,1.4442,1774.7,1774.4,3.2078]
[1743703848997,1.12739,1774.5,1774.4,5.3708]
[1743703849287,1.12739,1774.5,1774.4,2.163]
[1743703849787,2.57399,1774.5,1774.4,2.163]
[1743703849991,2.57399,1774.5,1774.4,3.29045]
[1743703850181,2.57399,1774.5,1774.4,2.163]
[1743703850376,2.57399,1774.5,1774.4,3.29045]
[1743703850576,1.4466,1774.5,1774.4,3.29045]
[1743703850782,1.12731,1774.7,1774.6,1.12733]
[1743703850984,1.12733,1774.6,1774.5,2.56434]
[1743703854691,1.12733,1774.6,1774.5,1.437]
[1743703854890,1.12733,1774.6,1774.5,2.56439]
[1743703856188,2.81785,1774.9,1774.5,7.88276]
[1743703856386,1.12726,1774.8,1774.7,4.33502]
[1743703856585,1.12726,1774.8,1774.7,5.74922]
[1743703856788,1.12726,1774.8,1774.7,1.4142]
[1743703857090,1.12726,1774.7,1774.6,0.7402]
[1743703857388,1.12726,1774.7,1774.6,1.86753]
[1743703857780,1.12726,1774.7,1774.6,0.7402]
[1743703857983,1.12726,1774.7,1774.5,1.4142]
[1743703857984,1.12733,1774.6,1774.5,1.4142]
[1743703858189,2.54203,1774.6,1774.5,1.4142]
[1743703860294,1.12752,1774.3,1774.2,4.34381428]
[1743703860484,1.12752,1774.3,1774.2,3.21625428]
[1743703860798,1.12752,1774.3,1774.2,0.00845428]
[1743703861092,1.12752,1774.3,1774.2,1.13603428]
[1743703861484,1.12752,1774.3,1774.2,4.34383428]
[1743703861694,2.54221,1774.4,1774.3,1.12752]
[1743703861988,2.54221,1774.4,1774.3,3.36632]
[1743703862386,2.54221,1774.4,1774.3,0.71497522]
[1743703862994,1.12752,1774.3,1774.2,0.00845428]
[1743703863194,3.37732,1774.3,1774.2,0.00845428]
[1743703863583,7.9576,1774.3,1773.7,3.2078]
[1743703863883,1.12783,1773.8,1773.7,3.2078]
[1743703864388,1.12796,1773.6,1773.5,0.7542]
[1743703864695,1.12809,1773.4,1773.3,1.1281]
[1743703865095,1.3942,1773.5,1773.2,45.89075373]
[1743703865290,1.12815,1773.4,1773.3,1.12815]
[1743703865884,1.12815,1773.3,1773.2,44.01625428]
[1743703866086,1.12815,1773.3,1773.2,45.14447428]
[1743703866291,1.12815,1773.3,1773.2,44.01625428]
[1743703866687,1.12815,1773.3,1773.2,4.34447428]
[1743703868195,2.52224,1773.5,1773.4,1.12809]
[1743703868405,1.3942,1773.5,1773.2,4.68445428]
[1743703868694,1.12815,1773.3,1773.2,5.81264428]
[1743703869505,1.12815,1773.3,1773.2,3.21625428]
[1743703870090,2.60885,1773.3,1773.2,3.21625428]
[1743703870796,3.34055,1773.3,1773.2,3.21625428]
[1743703873890,3.34055,1773.3,1773.2,4.34447428]
[1743703874099,2.60885,1773.3,1773.2,4.34447428]
[1743703874290,2.60885,1773.3,1773.2,5.87937428]
[1743703874489,1.12815,1773.3,1773.2,5.87937428]
[1743703874992,1.12815,1773.3,1773.2,4.75115428]
[1743703875200,1.12815,1773.3,1773.2,0.00845428]
[1743703880496,1.12815,1773.3,1773.2,1.13667428]
[1743703880703,1.12815,1773.3,1773.2,0.00845428]
[1743703882505,1.84885,1773.3,1773.2,0.00845428]
[1743703886411,3.26095,1773.3,1773.2,0.00845428]
[1743703887411,5.76095,1773.3,1773.2,4.28e-06]
[1743703888814,6.21812231,1773.3,1773.2,4.28e-06]
[1743703889316,5.76095,1773.3,1773.2,4.28e-06]
[1743703894020,3.26095,1773.3,1773.2,4.28e-06]
[1743703894723,5.76095,1773.3,1773.2,4.28e-06]
[1743703896118,3.26095,1773.3,1773.2,4.28e-06]
[1743703901725,1.12815,1773.3,1773.2,4.28e-06]
[1743703902427,2.53445,1773.3,1773.2,4.28e-06]
[1743703902621,3.23065,1773.3,1773.2,4.28e-06]
[1743703905226,3.23065,1773.3,1773.2,1.46840428]
[1743703905826,4.95515,1773.3,1773.2,1.46840428]
[1743703906021,1.12815,1773.3,1773.2,1.46840428]
[1743703906228,1.12815,1773.3,1773.2,2.59662428]
[1743703906427,1.12815,1773.3,1773.2,2.79481856]
[1743703906725,1.12815,1773.3,1773.2,2.18431]
[1743703907425,1.12815,1773.3,1773.2,1.46840428]
[1743703908220,2.64335,1773.3,1773.2,4.28e-06]
[1743703910532,1.12815,1773.3,1773.2,4.28e-06]
[1743703910722,1.12815,1773.3,1773.2,1.41830428]
[1743703913636,2.62525,1773.3,1773.2,1.41830428]
[1743703915435,2.62525,1773.3,1773.2,4.28e-06]
[1743703917731,5.12525,1773.3,1773.2,4.28e-06]
[1743703919137,5.22434222,1773.3,1773.2,4.28e-06]
[1743703919332,2.8206,1773.2,1772.8,0.7369]
[1743703919529,4.33621,1772.9,1772.8,0.7369]
[1743703920429,4.33621,1772.9,1772.8,2.1291]
[1743703921236,5.05421,1772.9,1772.8,2.1291]
[1743703921835,1.12847,1772.8,1772.7,0.76405428]
[1743703922135,6.47727,1772.8,1772.7,4.28e-06]
[1743703922336,8.97727,1772.8,1772.7,4.28e-06]
[1743703922534,1.12898,1772.0,1771.9,4.33682]
[1743703922736,1.12898,1772.0,1771.9,3.8192306]
[1743703923034,1.12904,1771.9,1771.8,42.2043]
[1743703923242,1.12904,1771.9,1771.8,40.8]
[1743703923441,2.82253,1772.0,1771.6,4.33698]
[1743703923636,1.12916,1771.8,1771.7,1.74003393]
[1743703923939,1.12916,1771.8,1771.7,43.59343299]
[1743703924132,1.12916,1771.8,1771.7,43.59335603]
[1743703924335,1.12916,1771.8,1771.7,2.18256906]
[1743703924829,1.12916,1771.8,1771.7,1.4662]
[1743703926040,1.13748428,1772.0,1771.9,1.12904]
[1743703926241,1.12904,1771.9,1771.8,4.33688]
[1743703926437,1.12904,1771.9,1771.8,3.2078]
[1743703926635,1.12911,1771.8,1771.7,1.4662]
[1743703926934,1.12911,1771.8,1771.7,4.674]
[1743703927133,1.12911,1771.8,1771.7,3.9662]
[1743703927340,1.12911,1771.8,1771.7,7.174]
[1743703927527,1.12911,1771.8,1771.7,8.30312]
[1743703927930,0.00845428,1772.0,1771.7,3.9662]
[1743703928241,0.00845428,1772.0,1771.9,4.33684]
[1743703928736,1.13743428,1772.0,1771.9,3.62904]
[1743703929031,1.12904,1771.9,1771.8,4.33685]
[1743703929238,1.13748428,1772.0,1771.9,1.12904]
[1743703929736,0.00845428,1772.0,1771.9,1.12904]
[1743703930036,0.00845428,1772.0,1771.9,3.62904]
[1743703930438,1.13743428,1772.0,1771.9,3.62904]
[1743703931439,1.13743428,1772.0,1771.9,1.12904]
[1743703932645,1.13743428,1772.0,1771.9,4.33684]
[1743703932946,0.00845428,1772.0,1771.9,4.33684]
[1743703933140,0.00845428,1772.0,1771.9,6.83684]
[1743703934543,0.00845428,1772.0,1771.9,10.66284]
[1743703938145,1.12887,1772.3,1772.2,1.12881]
[1743703938846,1.12887,1772.3,1772.2,2.61901]
[1743703939549,0.00845428,1772.4,1772.2,2.61901]
[1743703939550,0.00845428,1772.4,1772.3,1.12879]
[1743703939748,0.00845428,1772.4,1772.3,5.82679]
[1743703940054,0.00845428,1772.4,1772.3,8.32679]
[1743703940643,1.13717428,1772.4,1772.3,5.82679]
[1743703943247,0.00845428,1772.4,1772.3,8.32679]
[1743703944452,0.00845428,1772.4,1772.3,9.03921811]
[1743703944848,1.13717428,1772.4,1772.3,8.32679]
[1743703945251,0.00845428,1772.4,1772.3,8.32679]
[1743703945752,0.00845428,1772.4,1772.3,9.03952161]
[1743703948562,1.12857,1772.7,1772.6,1.1286]
[1743703948760,1.1285,1772.8,1772.7,1.12847]
[1743703949060,1.1285,1772.8,1772.7,2.59637]
[1743703949251,1.8692,1772.8,1772.7,43.39637]
[1743703949451,1.8692,1772.8,1772.7,44.91677]
[1743703950359,1.8692,1772.8,1772.7,4.11677]
[1743703950958,1.8692,1772.8,1772.7,4.11683]
[1743703951760,1.53925428,1772.9,1772.8,1.12847]
[1743703951963,1.53925428,1772.9,1772.8,5.85167]
[1743703951964,0.00845428,1772.9,1772.8,5.85167]
[1743703952161,0.00845428,1772.9,1772.8,12.88811354]
[1743703953061,0.00845428,1772.9,1772.8,18.85811354]
[1743703955456,1.13686428,1772.9,1772.8,7.81091354]
[1743703955657,1.13686428,1772.9,1772.8,5.97]
[1743703955957,1.13686428,1772.9,1772.5,4.33641]
[1743703955958,1.1286,1772.6,1772.5,4.33641]
[1743703956158,1.1286,1772.6,1772.5,1.12861]
[1743703956363,1.12866,1772.5,1772.4,5.04107]
[1743703957158,2.55736,1772.5,1772.4,5.04107]
[1743703959464,1.4287,1772.5,1772.4,5.04107]
[1743703959655,2.55736,1772.5,1772.4,4.33647]
[1743703959861,2.55736,1772.5,1772.4,5.04890338]
[1743703960563,2.55736,1772.5,1772.4,4.33652]
[1743703962161,3.55518,1772.8,1772.5,1.12866]
[1743703962162,0.734,1772.8,1772.5,1.12866]
[1743703962377,2.56446,1772.7,1772.6,1.12853]
[1743703963373,1.1286,1772.6,1772.5,5.85731]
[1743703963563,2.5645,1772.6,1772.5,5.85731]
[1743703963964,2.5645,1772.6,1772.5,6.56986294]
[1743703965575,2.5645,1772.6,1772.5,1.84116294]
[1743703965773,2.5645,1772.6,1772.5,0.71255294]
[1743703966170,1.4359,1772.6,1772.3,5.4397]
[1743703966375,1.12872,1772.4,1772.3,5.05419]
[1743703966575,3.30991,1772.5,1772.4,1.12872]
[1743703966976,2.60031,1772.5,1772.4,3.33982]
[1743703967177,2.60031,1772.5,1772.4,4.0532071]
[1743703967678,1.12871,1772.5,1772.4,4.66184677]
[1743703968273,1.12871,1772.5,1772.4,4.66086659]
[1743703969674,2.52094,1772.6,1772.5,1.12866]
[1743703969972,1.12851,1772.8,1772.5,6.04276414]
[1743703970167,1.12851,1772.8,1772.5,5.4348871]
[1743703970380,1.12851,1772.8,1772.7,1.12847]
[1743703970773,1.12851,1772.8,1772.7,1.4944]
[1743703971688,1.1286,1772.6,1772.5,4.3364]
[1743703971982,1.1286,1772.6,1772.5,5.70223008]
[1743703972182,1.1286,1772.6,1772.5,6.41654337]
[1743703972383,2.5758,1772.6,1772.5,3.92211329]
[1743703972577,3.275,1772.6,1772.5,0.71431329]
[1743703973081,3.275,1772.6,1772.5,1.84297329]
[1743703974178,3.275,1772.6,1772.5,0.71431329]
[1743703974381,3.275,1772.6,1772.5,1.84297329]
[1743703975276,3.275,1772.6,1772.5,0.71431329]
[1743703975879,3.275,1772.6,1772.5,1.84297329]
[1743703976089,3.275,1772.6,1772.5,0.71431329]
[1743703977187,1.12872,1772.4,1772.3,2.51963]
[1743703977684,1.12872,1772.4,1772.3,3.12806094]
[1743703977986,1.12872,1772.4,1772.3,3.84291511]
[1743703978281,2.55431,1772.5,1772.4,1.12872]
[1743703978487,2.55431,1772.5,1772.4,2.51962]
[1743703978688,2.55431,1772.5,1772.4,3.23447417]
[1743703978883,1.12871,1772.5,1772.4,6.44227417]
[1743703979088,1.12866,1772.6,1772.5,1.1286]
[1743703979390,1.12866,1772.6,1772.5,2.5195]
[1743703979585,1.12866,1772.6,1772.5,3.92955417]
[1743703980282,1.12866,1772.6,1772.5,4.53781815]
[1743703981984,2.55756,1772.7,1772.6,1.1286]
[1743703982195,2.55756,1772.7,1772.6,7.28185417]
[1743703984187,2.55756,1772.7,1772.6,7.89083988]
[1743703984590,1.12856,1772.7,1772.6,7.89083988]
[1743703985186,1.12851,1772.8,1772.7,1.12847]
[1743703985385,0.76645428,1772.9,1772.8,1.12847]
[1743703985386,1.13692428,1772.9,1772.8,1.12847]
[1743703985584,1.13692428,1772.9,1772.8,3.9234]
[1743703985787,2.52452428,1772.9,1772.8,4.63825417]
[1743703986793,2.52452428,1772.9,1772.8,1.43045417]
[1743703987695,2.52452428,1772.9,1772.8,7.78483729]
[1743703987696,0.00845428,1772.9,1772.8,7.78483729]
[1743703987891,0.00845428,1772.9,1772.8,10.28483729]
[1743703988693,1.12827,1773.2,1773.1,1.12822]
[1743703989094,1.12828,1773.1,1773.0,6.43529]
[1743703989295,1.12828,1773.1,1773.0,5.63605339]
[1743703989689,1.12828,1773.1,1773.0,6.35034335]
[1743703989895,1.12828,1773.1,1773.0,5.74207996]
[1743703990696,1.13670428,1773.2,1773.1,1.12828]
[1743703990892,0.00845428,1773.2,1773.1,2.45453948]
[1743703991196,1.12813,1773.4,1773.3,1.1281]
[1743703991697,1.12813,1773.4,1773.3,41.51379366]
[1743703992289,1.86353,1773.4,1773.3,40.8]
[1743703992494,1.12828,1773.1,1773.0,3.8995]
[1743703992800,1.12828,1773.1,1773.0,4.61288804]
[1743703993092,1.12828,1773.1,1773.0,5.74118804]
[1743703994095,1.12828,1773.1,1773.0,4.61288804]
[1743703994298,1.86368,1773.1,1773.0,5.74122804]
[1743703994488,1.86368,1773.1,1773.0,4.61288804]
[1743703994689,1.86368,1773.1,1773.0,3.8995]
[1743703995196,1.86368,1773.1,1773.0,3.2078]
[1743703995891,3.36528,1773.1,1773.0,3.2078]
[1743703996188,3.36528,1773.1,1773.0,4.33614]
[1743703996891,3.36528,1773.1,1773.0,3.2078]
[1743703998093,3.36528,1773.1,1773.0,4.33614]
[1743703998493,3.36528,1773.1,1773.0,3.2078]
[1743703998796,3.36528,1773.1,1773.0,4.33614]
[1743703998995,3.36528,1773.1,1773.0,3.2078]
[1743703999202,3.36528,1773.1,1773.0,4.33614]
[1743703999909,3.36528,1773.1,1773.0,3.2078]
[1743704000398,3.36528,1773.1,1773.0,4.33614]
[1743704000594,2.62988,1773.1,1773.0,4.33614]
[1743704000794,2.62988,1773.1,1773.0,5.08264]
[1743704001292,4.29629,1773.3,1773.0,4.66741554]
[1743704001499,1.12827,1773.2,1773.1,1.82232]
[1743704002000,1.12827,1773.2,1773.1,2.53543554]
[1743704002600,2.59087,1773.2,1773.1,0.6941]
[1743704002796,2.59087,1773.2,1773.0,3.9543]
[1743704002797,1.12828,1773.1,1773.0,3.9543]
[1743704003002,2.59088,1773.1,1773.0,5.08264]
[1743704003302,2.59088,1773.1,1773.0,5.79574362]
[1743704004297,1.12827,1773.2,1773.1,1.12828]
[1743704004904,1.12827,1773.2,1773.1,1.84138362]
[1743704006303,1.12822,1773.3,1773.2,1.12822]
[1743704006507,1.12814,1773.4,1773.3,1.12809]
[1743704006806,1.12814,1773.4,1773.3,2.59225]
[1743704006997,2.55034,1773.4,1773.3,2.59225]
[1743704007397,2.55034,1773.4,1773.3,1.4641]
[1743704007805,2.55034,1773.4,1773.3,2.59225]
[1743704008007,2.55034,1773.4,1773.3,1.4641]
[1743704008402,1.12815,1773.3,1773.2,3.2078]
[1743704008608,2.53425,1773.3,1773.2,4.33602]
[1743704008808,2.53425,1773.3,1773.2,4.6166]
[1743704009006,2.53425,1773.3,1773.2,0.71372736]
[1743704009206,5.03425,1773.3,1773.2,0.71372736]
[1743704009708,1.12828,1773.1,1773.0,3.2078]
[1743704010507,2.61148,1773.1,1773.0,3.2078]
[1743704010709,4.12898,1773.1,1773.0,3.2078]
[1743704012713,1.12834,1773.0,1772.9,0.00845428]
[1743704012912,2.64584,1773.0,1772.9,0.00845428]
[1743704013802,5.14584,1773.0,1772.9,0.00845428]
[1743704014002,1.1286,1772.6,1772.5,3.9048]
[1743704014207,1.1286,1772.6,1772.5,4.51342765]
[1743704014411,1.1286,1772.6,1772.5,6.35745117]
[1743704014607,1.1286,1772.6,1772.5,48.54555117]
[1743704014809,1.1286,1772.6,1772.5,47.41689117]
[1743704015112,2.5129,1772.6,1772.5,47.41689117]
[1743704015309,2.5129,1772.6,1772.5,46.80826352]
[1743704015609,2.5129,1772.6,1772.5,47.41690473]
[1743704015801,2.5129,1772.6,1772.5,48.54556473]
[1743704016003,2.5129,1772.6,1772.5,47.41690473]
[1743704016209,2.5129,1772.6,1772.5,48.54556473]
[1743704016409,2.5129,1772.6,1772.5,48.54560218]
[1743704016711,2.5129,1772.6,1772.5,47.41694218]
[1743704017505,2.5129,1772.6,1772.5,44.72316352]
[1743704017809,2.5129,1772.6,1772.5,3.92316352]
[1743704018811,2.5129,1772.6,1772.5,3.2078]
[1743704020610,2.5129,1772.6,1772.5,4.7285]
[1743704021207,2.5129,1772.6,1772.5,5.4776]
[1743704022511,2.5129,1772.6,1772.5,3.2078]
[1743704022714,1.12866,1772.5,1772.4,0.73255428]
[1743704022906,2.61626,1772.5,1772.4,0.73255428]
[1743704023414,2.61626,1772.5,1772.4,2.16275428]
[1743704023814,2.61626,1772.5,1772.4,0.73255428]
[1743704025117,2.61626,1772.5,1772.4,0.00845428]
[1743704029222,5.11626,1772.5,1772.4,4.28e-06]
[1743704030315,5.21539415,1772.5,1772.4,4.28e-06]
[1743704030622,11.18339415,1772.5,1772.4,4.28e-06]
[1743704031013,11.18339654,1772.5,1772.4,4.28e-06]
[1743704031209,11.6028256,1772.5,1772.4,4.28e-06]
[1743704031913,11.18339654,1772.5,1772.4,4.28e-06]
[1743704032722,2.61626,1772.5,1772.4,4.28e-06]
[1743704036323,5.82406,1772.5,1772.4,4.28e-06]
[1743704040421,1.12866,1772.5,1772.4,4.28e-06]
[1743704040824,1.12866,1772.5,1772.4,1.42300428]
[1743704044131,1.12866,1772.5,1772.4,2.13786197]
[1743704045022,1.12866,1772.5,1772.4,0.71486197]
[1743704045423,3.26976,1772.5,1772.4,4.28e-06]
[1743704045733,7.08776,1772.5,1772.4,4.28e-06]
[1743704047027,9.58776,1772.5,1772.4,4.28e-06]
[1743704050140,7.08776,1772.5,1772.4,4.28e-06]
[1743704050343,1.12904,1771.9,1771.8,42.2554]
[1743704050530,1.12904,1771.9,1771.8,0.7427]
[1743704050935,2.58844,1771.9,1771.8,41.5427]
[1743704051239,1.12904,1771.9,1771.8,2.2295]
[1743704051540,1.12904,1771.9,1771.8,2.94502412]
[1743704052334,1.12904,1771.9,1771.8,2.2295]
[1743704053752,2.63854,1771.9,1771.8,2.2295]
[1743704054152,3.40034,1771.9,1771.8,2.2295]
[1743704055646,1.12904,1771.9,1771.8,2.2295]
[1743704056555,2.55464,1771.9,1771.8,2.2295]
[1743704056752,1.12904,1771.9,1771.8,2.2295]
[1743704057559,2.55464,1771.9,1771.8,2.2295]
[1743704057751,5.76244,1771.9,1771.8,0.7427]
[1743704057951,3.30194,1771.9,1771.8,0.7427]
[1743704058352,6.50974,1771.9,1771.8,0.7427]
[1743704058960,1.12911,1771.8,1771.7,0.71195428]
[1743704059258,2.55471,1771.8,1771.7,0.71195428]
[1743704060860,1.12911,1771.8,1771.7,0.71195428]
[1743704061056,2.55321,1771.8,1771.7,0.71195428]
[1743704062163,1.4241,1771.8,1771.3,3.2078]
[1743704062359,1.12936,1771.4,1771.3,3.2078]
[1743704062957,1.12936,1771.4,1771.3,3.92359193]
[1743704063557,1.12936,1771.4,1771.3,6.83009193]
[1743704064156,1.12936,1771.4,1771.3,7.95952193]
[1743704064763,1.12936,1771.4,1771.3,8.56838409]
[1743704064961,1.12936,1771.4,1771.3,8.56834662]
[1743704065162,1.12936,1771.4,1771.3,7.95952193]
[1743704065369,1.12936,1771.4,1771.3,48.75952193]
[1743704065568,1.12936,1771.4,1771.3,49.36831381]
[1743704066065,1.12936,1771.4,1771.3,51.86831381]
[1743704066963,1.12935,1771.5,1771.4,1.1293]
[1743704067267,1.12929,1771.6,1771.5,1.12924]
[1743704067460,1.12929,1771.6,1771.5,4.7436]
[1743704067863,1.12929,1771.6,1771.5,46.6729]
[1743704068069,1.12929,1771.6,1771.5,45.5436]
[1743704068463,1.12929,1771.6,1771.5,46.25888091]
[1743704068665,1.12929,1771.6,1771.5,47.38818091]
[1743704069265,1.12929,1771.6,1771.5,46.25888091]
[1743704070065,1.12929,1771.6,1771.5,47.38818091]
[1743704070369,1.12929,1771.6,1771.5,49.88818091]
[1743704070965,1.12929,1771.6,1771.5,5.45888091]
[1743704071171,1.12929,1771.6,1771.5,4.7436]
[1743704071565,1.12929,1771.6,1771.5,45.5436]
[1743704072374,1.12929,1771.6,1771.5,46.25984645]
[1743704073367,1.12929,1771.6,1771.5,46.86991411]
[1743704073571,1.12929,1771.6,1771.5,47.99925596]
[1743704074466,1.12929,1771.6,1771.5,47.99921087]
[1743704077060,1.12929,1771.6,1771.5,43.66211087]
[1743704077265,1.12929,1771.6,1771.5,47.99921087]
[1743704078267,1.12929,1771.6,1771.5,47.28296442]
[1743704078574,1.12929,1771.6,1771.5,48.00105382]
[1743704079366,2.82281,1771.8,1771.6,1.12917]
[1743704079367,1.12922,1771.7,1771.6,1.12917]
[1743704079568,1.12922,1771.7,1771.6,3.18902382]
[1743704079770,1.12915,1771.8,1771.7,1.12911]
[1743704079976,1.12915,1771.8,1771.7,4.94697442]
[1743704080171,1.12915,1771.8,1771.7,6.83691]
[1743704080368,1.12915,1771.8,1771.7,8.16612303]
[1743704083177,1.12915,1771.8,1771.7,5.66612303]
[1743704084078,1.12915,1771.8,1771.7,5.66582216]
[1743704084272,1.12909,1771.9,1771.8,1.12904]
[1743704084473,1.13748428,1772.0,1771.9,1.12904]
[1743704084781,1.13748428,1772.0,1771.9,5.67195985]
[1743704084978,1.13748428,1772.0,1771.9,6.39004925]
[1743704085780,0.00845428,1772.0,1771.9,8.89004925]
[1743704087374,2.56914,1772.4,1772.3,1.12879]
[1743704087581,1.12885,1772.2,1772.1,8.15266]
[1743704087777,1.12885,1772.2,1772.1,8.76237014]
[1743704087976,1.12885,1772.2,1772.1,11.98045954]
[1743704089884,1.12885,1772.2,1772.1,11.97970639]
[1743704090077,1.12885,1772.2,1772.1,11.3707494]
[1743704090879,1.12885,1772.2,1772.1,11.97966708]
[1743704091284,1.12885,1772.2,1772.1,11.3707494]
[1743704091886,1.12885,1772.2,1772.1,3.9258894]
[1743704092088,2.57275,1772.2,1772.1,5.0548094]
[1743704092283,2.57275,1772.2,1772.1,3.9258894]
[1743704092483,2.57275,1772.2,1772.1,5.0548094]
[1743704092684,2.57275,1772.2,1772.1,1.8470094]
[1743704092888,2.57275,1772.2,1772.1,0.7180894]
[1743704093083,2.57275,1772.2,1772.1,4.33672]
[1743704094193,1.42935428,1772.3,1772.1,3.92304416]
[1743704094483,0.00845428,1772.3,1772.2,1.12885]
[1743704094678,0.00845428,1772.3,1772.2,2.57669416]
[1743704094974,0.00845428,1772.3,1772.2,3.18530336]
[1743704095374,0.00845428,1772.3,1772.2,2.57669416]
[1743704095578,0.00845428,1772.3,1772.2,3.18515995]
[1743704095778,0.00845428,1772.3,1772.2,2.57669416]
[1743704095977,0.00845428,1772.3,1772.2,9.15515276]
[1743704097086,1.13724428,1772.3,1772.2,12.36069416]
[1743704097285,0.00845428,1772.3,1772.2,12.9689462]
[1743704097890,0.00845428,1772.3,1772.2,12.36069416]
[1743704098089,0.00845428,1772.3,1772.2,7.81409416]
[1743704098295,1.13724428,1772.3,1772.2,7.81409416]
[1743704098989,0.00845428,1772.3,1772.2,7.81409416]
[1743704099187,0.00845428,1772.3,1772.2,9.20939416]
[1743704099391,1.42005428,1772.3,1772.2,9.20939416]
[1743704099592,2.54884428,1772.3,1772.2,3.23939416]
[1743704099888,1.42005428,1772.3,1772.2,3.23939416]
[1743704100285,2.54884428,1772.3,1772.2,3.23939416]
[1743704100492,2.54884428,1772.3,1772.2,0.71524416]
[1743704100685,2.54884428,1772.3,1772.1,3.2078]
[1743704100686,1.12885,1772.2,1772.1,1.12891]
[1743704100880,3.26005,1772.2,1772.1,4.33671]
[1743704101690,3.26005,1772.2,1772.1,4.33672]
[1743704102587,1.4116,1772.2,1772.1,4.33672]
[1743704102787,0.00845428,1772.3,1772.2,1.12885]
[1743704102992,0.00845428,1772.3,1772.2,3.31065]
[1743704103191,1.13724428,1772.3,1772.2,4.6333516]
[1743704103392,0.00845428,1772.3,1772.2,45.4333516]
[1743704104787,1.13724428,1772.3,1772.2,45.4333516]
[1743704104992,2.56184428,1772.3,1772.2,45.43342158]
[1743704105188,2.56184428,1772.3,1772.2,44.82517634]
[1743704105982,0.00845428,1772.3,1772.2,47.93336718]
[1743704106186,1.4963,1772.5,1772.4,1.12872]
[1743704106389,1.12858,1772.7,1772.6,1.1286]
[1743704106588,1.12866,1772.5,1772.4,8.14951]
[1743704106892,1.12866,1772.5,1772.4,48.94951]
[1743704107098,1.12866,1772.5,1772.4,49.66405913]
[1743704107395,1.12866,1772.5,1772.4,48.94951]
[1743704107589,1.87176,1772.5,1772.4,48.94951]
[1743704108293,2.60106,1772.5,1772.4,7.0208]
[1743704108589,1.4724,1772.5,1772.1,2.82229]
[1743704108792,1.12883,1772.3,1772.2,42.53750696]
[1743704108990,1.12883,1772.3,1772.2,45.74530696]
[1743704109182,1.12883,1772.3,1772.2,44.72310688]
[1743704110103,1.12883,1772.3,1772.2,45.85195688]
[1743704110287,1.12883,1772.3,1772.2,41.51530688]
[1743704110593,1.12883,1772.3,1772.2,44.72310688]
[1743704110891,1.12883,1772.3,1772.2,45.85195688]
[1743704111396,1.12883,1772.3,1772.2,41.51530688]
[1743704111692,1.12883,1772.3,1772.2,42.64415688]
[1743704112495,1.12883,1772.3,1772.2,41.51530688]